fUST/lending_fUST_20250831
["ID","MTS","AMOUNT","RATE_DAILY","PERIOD"]
[382490229,1756647042115,-628.21,0.00017507,2]
[382490231,1756647042124,-628.21,0.00017507,2]
[382490233,1756647042134,-780.03,0.0001751,2]
[382490235,1756647042143,-500.0,0.0001751,2]
[382490237,1756647042152,-197.59145903,0.0001751,2]
[382490239,1756647042161,-628.21,0.0001751,2]
[382490241,1756647042171,-628.21,0.0001751,2]
[382490243,1756647042180,-628.21,0.0001751,2]
[382490244,1756647042190,-628.21,0.0001751,2]
[382490247,1756647042200,-628.21,0.00017512,2]
[382490248,1756647042211,-628.21,0.00017512,2]
[382490250,1756647042220,-628.21,0.00017512,2]
[382490252,1756647042230,-628.21,0.00017512,2]
[382490254,1756647042240,-628.21,0.00017512,2]
[382490257,1756647042249,-628.21,0.00017512,2]
[382490258,1756647042259,-628.21,0.00017512,2]
[382490260,1756647042268,-628.21,0.00017512,2]
[382490262,1756647042278,-628.28109214,0.00017512,2]
[382490265,1756647042288,-401.40059689,0.00017538,2]
[382490267,1756647042298,-168.0,0.00017559,2]
[382490269,1756647042307,-151.0,0.000176,2]
[382490271,1756647042317,-900.0,0.000176,2]
[382490273,1756647042326,-2098.79470144,0.000176,2]
[382490275,1756647042336,-401.40059689,0.00017606,2]
[382490277,1756647042346,-11364.23969824,0.0001766,2]
[382490278,1756647042355,-217.4012883,0.00017665,2]
[382490281,1756647042365,-160.0,0.00017665,2]
[382490282,1756647042374,-425.75173308,0.00017665,2]
[382490285,1756647042384,-232.78794292,0.00017665,2]
[382490287,1756647042393,-160.0,0.00017665,2]
[382490288,1756647042403,-160.0,0.00017665,2]
[382490311,1756647042620,-845.95363151,0.00017665,2]
[382490313,1756647042631,-188.24652281,0.00017665,2]
[382490315,1756647042641,-160.0,0.00017665,2]
[382490317,1756647042651,-530.02580203,0.00017665,2]
[382490319,1756647042660,-160.0,0.00017665,2]
[382490321,1756647042670,-417.15472785,0.00017665,2]
[382490323,1756647042680,-160.0,0.00017665,2]
[382490325,1756647042689,-401.40059689,0.00017674,2]
[382490327,1756647042698,-160.0,0.00017691,2]
[382490329,1756647042708,-160.0,0.00017691,2]
[382490331,1756647042717,-160.0,0.00017691,2]
[382490333,1756647042726,-151.0,0.000177,2]
[382490335,1756647042735,-151.0,0.000177,2]
[382490338,1756647042745,-168.946,0.000177,2]
[382490340,1756647042754,-780.03,0.00017702,2]
[382490342,1756647042764,-298.0,0.0001774,2]
[382490344,1756647042773,-4000.0,0.00017772,2]
[382490346,1756647042783,-500.0,0.00017773,2]
[382490347,1756647042792,-500.0,0.00017773,2]
[382490349,1756647042802,-500.0,0.00017773,2]
[382490351,1756647042813,-500.0,0.00017773,2]
[382490352,1756647042822,-500.0,0.00017773,2]
[382490353,1756647042831,-500.0,0.00017773,2]
[382490354,1756647042840,-500.97484638,0.00017773,2]
[382490355,1756647042850,-500.0,0.00017773,2]
[382490356,1756647042859,-500.0,0.00017773,2]
[382490357,1756647042868,-500.0,0.00017773,2]
[382490358,1756647042878,-500.0,0.00017773,2]
[382490359,1756647042887,-500.0,0.00017773,2]
[382490360,1756647042897,-500.0,0.00017773,2]
[382490361,1756647042906,-500.0,0.00017773,2]
[382490362,1756647042915,-500.0,0.00017773,2]
[382490363,1756647042925,-213.6364315,0.00017773,2]
[382490364,1756647042934,-500.0,0.00017773,2]
[382490365,1756647042944,-500.0,0.00017773,2]
[382490366,1756647042953,-500.0,0.00017773,2]
[382490367,1756647042963,-500.0,0.00017773,2]
[382490368,1756647042973,-500.0,0.00017773,2]
[382490369,1756647042983,-500.0,0.00017773,2]
[382490370,1756647042992,-500.0,0.00017773,2]
[382490371,1756647043001,-181.91700237,0.00017773,2]
[382490372,1756647043011,-500.0,0.00017773,2]
[382490387,1756647043020,-500.0,0.00017773,2]
[382490389,1756647043183,-501.21878673,0.00017773,2]
[382490391,1756647043193,-500.0,0.00017773,2]
[382490393,1756647043203,-500.0,0.00017773,2]
[382490395,1756647043212,-500.0,0.00017773,2]
[382490397,1756647043225,-500.0,0.00017773,2]
[382490399,1756647043235,-213.79428328,0.00017773,2]
[382490401,1756647043244,-500.0,0.00017773,2]
[382490403,1756647043254,-500.0,0.00017773,2]
[382490405,1756647043264,-518.48245204,0.00017773,2]
[382490407,1756647043273,-500.0,0.00017773,2]
[382490409,1756647043282,-500.0,0.00017773,2]
[382490411,1756647043292,-500.0,0.00017773,2]
[382490414,1756647043301,-160.77188662,0.00017773,2]
[382490417,1756647043311,-500.0,0.00017773,2]
[382490420,1756647043321,-504.83033594,0.00017773,2]
[382490422,1756647043331,-519.97580936,0.00017773,2]
[382490424,1756647043340,-158.65713755,0.00017773,2]
[382490426,1756647043350,-500.0,0.00017773,2]
[382490428,1756647043360,-780.03,0.00017773,2]
[382490430,1756647043370,-780.03,0.00017773,2]
[382490432,1756647043380,-780.03,0.00017773,2]
[382490434,1756647043389,-3028.397421,0.00017773,2]
[382490436,1756647043399,-480.0,0.00017774,2]
[382490438,1756647043410,-440.13314868,0.00017774,2]
[382490440,1756647043420,-1397.52,0.00017774,2]
[382490442,1756647043429,-480.0,0.00017774,2]
[382490444,1756647043439,-480.0,0.00017774,2]
[382490446,1756647043449,-480.0,0.00017774,2]
[382490448,1756647043459,-480.0,0.00017774,2]
[382490450,1756647043469,-639.49,0.00017774,2]
[382490452,1756647043479,-507.6,0.00017774,2]
[382490454,1756647043491,-480.0,0.00017774,2]
[382490456,1756647043501,-480.0,0.00017774,2]
[382490458,1756647043511,-480.0,0.00017774,2]
[382490460,1756647043520,-480.0,0.00017774,2]
[382490462,1756647043530,-1104.52,0.00017774,2]
[382490464,1756647043540,-480.0,0.00017774,2]
[382490466,1756647043550,-518.63693586,0.00017774,2]
[382490468,1756647043560,-480.0,0.00017774,2]
[382490470,1756647043572,-480.0,0.00017774,2]
[382490473,1756647043582,-767.06,0.00017774,2]
[382490476,1756647043592,-480.0,0.00017774,2]
[382490479,1756647043602,-480.0,0.00017774,2]
[382490481,1756647043612,-480.0,0.00017774,2]
[382490484,1756647043621,-480.0,0.00017774,2]
[382490486,1756647043630,-480.0,0.00017774,2]
[382490488,1756647043639,-480.0,0.00017774,2]
[382490490,1756647043649,-480.0,0.00017774,2]
[382490492,1756647043658,-920.69,0.00017774,2]
[382490494,1756647043668,-780.03,0.00017774,2]
[382490496,1756647043677,-780.03,0.00017774,2]
[382490498,1756647043686,-780.03,0.00017774,2]
[382490500,1756647043696,-780.03,0.00017774,2]
[382490502,1756647043705,-780.03,0.00017774,2]
[382490504,1756647043716,-780.03,0.00017774,2]
[382490506,1756647043726,-780.03,0.00017774,2]
[382490508,1756647043735,-780.03,0.00017774,2]
[382490510,1756647043744,-780.09824563,0.00017774,2]
[382490512,1756647043754,-822.59,0.00017774,2]
[382490514,1756647043763,-480.0,0.00017774,2]
[382490516,1756647043772,-587.38,0.00017774,2]
[382490518,1756647043782,-1229.77,0.00017774,2]
[382490520,1756647043791,-526.92,0.00017774,2]
[382490522,1756647043800,-480.0,0.00017774,2]
[382490524,1756647043810,-437.20846435,0.00017774,2]
[382490526,1756647043821,-992.66,0.00017774,2]
[382490528,1756647043831,-923.58,0.00017774,2]
[382490530,1756647043841,-480.0,0.00017774,2]
[382490532,1756647043851,-1103.86,0.00017774,2]
[382490534,1756647043860,-496.53,0.00017774,2]
[382490536,1756647043870,-480.0,0.00017774,2]
[382490538,1756647043882,-480.0,0.00017774,2]
[382490540,1756647043891,-646.75,0.00017774,2]
[382490542,1756647043901,-480.0,0.00017774,2]
[382490544,1756647043910,-1041.77,0.00017774,2]
[382490546,1756647043919,-1171.4,0.00017774,2]
[382490548,1756647043929,-229.42569304,0.00017774,2]
[382490550,1756647043938,-480.0,0.00017774,2]
[382490552,1756647043948,-855.65,0.00017774,2]
[382490555,1756647043958,-778.0,0.00017774,2]
[382490557,1756647043977,-480.0,0.00017774,2]
[382490559,1756647043987,-577.22162253,0.00017774,2]
[382490561,1756647043997,-480.0,0.00017774,2]
[382490563,1756647044006,-480.0,0.00017774,2]
[382490565,1756647044016,-2071.86,0.00017774,2]
[382490567,1756647044026,-480.0,0.00017774,2]
[382490569,1756647044036,-480.0,0.00017774,2]
[382490571,1756647044046,-601.76,0.00017774,2]
[382490573,1756647044056,-480.0,0.00017774,2]
[382490576,1756647044066,-569.85,0.00017774,2]
[382490577,1756647044075,-480.0,0.00017774,2]
[382490579,1756647044086,-723.21,0.00017774,2]
[382490582,1756647044097,-480.0,0.00017774,2]
[382490584,1756647044111,-546.59,0.00017774,2]
[382490586,1756647044122,-1578.77,0.00017774,2]
[382490588,1756647044132,-480.0,0.00017774,2]
[382490590,1756647044142,-583.68,0.00017774,2]
[382490592,1756647044152,-506.69074386,0.00017774,2]
[382490594,1756647044162,-526.87,0.00017774,2]
[382490596,1756647044171,-480.0,0.00017774,2]
[382490598,1756647044181,-480.0,0.00017774,2]
[382490600,1756647044190,-551.65,0.00017774,2]
[382490602,1756647044202,-1550.12,0.00017774,2]
[382490604,1756647044212,-480.0,0.00017774,2]
[382490607,1756647044223,-480.0,0.00017774,2]
[382490609,1756647044233,-980.61,0.00017774,2]
[382490611,1756647044243,-480.0,0.00017774,2]
[382490613,1756647044253,-480.0,0.00017774,2]
[382490615,1756647044263,-480.0,0.00017774,2]
[382490617,1756647044272,-1562.44,0.00017774,2]
[382490619,1756647044283,-480.0,0.00017774,2]
[382490621,1756647044292,-627.45,0.00017774,2]
[382490623,1756647044302,-480.0,0.00017774,2]
[382490625,1756647044312,-885.22,0.00017774,2]
[382490627,1756647044321,-278.00664309,0.00017774,2]
[382490629,1756647044332,-480.0,0.00017774,2]
[382490631,1756647044344,-2638.76,0.00017774,2]
[382490633,1756647044355,-480.0,0.00017774,2]
[382490635,1756647044365,-480.0,0.00017774,2]
[382490637,1756647044374,-413.3736342,0.00017774,2]
[382490639,1756647044384,-480.0,0.00017774,2]
[382490641,1756647044394,-480.0,0.00017774,2]
[382490643,1756647044404,-650.9,0.00017774,2]
[382490645,1756647044414,-480.0,0.00017774,2]
[382490647,1756647044424,-480.0,0.00017774,2]
[382490649,1756647044434,-481.5065541,0.00017774,2]
[382490651,1756647044444,-1949.26,0.00017774,2]
[382490653,1756647044454,-480.0,0.00017774,2]
[382490655,1756647044464,-1282.96,0.00017774,2]
[382490657,1756647044474,-480.0,0.00017774,2]
[382490659,1756647044485,-480.0,0.00017774,2]
[382490660,1756647044500,-480.0,0.00017774,2]
[382490663,1756647044510,-1316.81,0.00017774,2]
[382490664,1756647044520,-480.0,0.00017774,2]
[382490667,1756647044530,-1679.73,0.00017774,2]
[382490668,1756647044540,-480.0,0.00017774,2]
[382490671,1756647044550,-1672.43,0.00017774,2]
[382490672,1756647044560,-534.35,0.00017774,2]
[382490675,1756647044570,-817.56,0.00017774,2]
[382490676,1756647044579,-481.92102351,0.00017774,2]
[382490678,1756647044590,-1739.39,0.00017774,2]
[382490681,1756647044601,-700.55,0.00017774,2]
[382490683,1756647044610,-480.0,0.00017774,2]
[382490685,1756647044620,-1368.71,0.00017774,2]
[382490687,1756647044630,-480.0,0.00017774,2]
[382490689,1756647044640,-480.0,0.00017774,2]
[382490691,1756647044649,-480.0,0.00017774,2]
[382490693,1756647044660,-480.0,0.00017774,2]
[382490695,1756647044670,-298.80298951,0.00017774,2]
[382490697,1756647044680,-506.66,0.00017774,2]
[382490699,1756647044690,-480.0,0.00017774,2]
[382490701,1756647044700,-495.7,0.00017774,2]
[382490703,1756647044710,-506.81,0.00017774,2]
[382490705,1756647044720,-480.0,0.00017774,2]
[382490707,1756647044730,-480.0,0.00017774,2]
[382490709,1756647044739,-613.0,0.00017774,2]
[382490711,1756647044749,-480.0,0.00017774,2]
[382490713,1756647044760,-480.0,0.00017774,2]
[382490715,1756647044769,-480.0,0.00017774,2]
[382490717,1756647044779,-852.07,0.00017774,2]
[382490719,1756647044789,-151.0,0.00017774,2]
[382490721,1756647044799,-480.0,0.00017774,2]
[382490723,1756647044808,-480.0,0.00017774,2]
[382490725,1756647044818,-480.0,0.00017774,2]
[382490727,1756647044827,-813.4,0.00017774,2]
[382490729,1756647044838,-1394.45,0.00017774,2]
[382490731,1756647044848,-480.0,0.00017774,2]
[382490733,1756647044858,-151.0,0.00017774,2]
[382490735,1756647044867,-815.7,0.00017774,2]
[382490737,1756647044877,-665.04,0.00017774,2]
[382490739,1756647044887,-576.54,0.00017774,2]
[382490741,1756647044897,-1639.72,0.00017774,2]
[382490743,1756647044907,-780.26,0.00017774,2]
[382490745,1756647044916,-151.0,0.00017774,2]
[382490747,1756647044927,-789.17,0.00017774,2]
[382490749,1756647044936,-480.0,0.00017774,2]
[382490751,1756647044946,-151.0,0.00017774,2]
[382490754,1756647044956,-247.99788616,0.00017774,2]
[382490756,1756647044967,-480.0,0.00017774,2]
[382490757,1756647044976,-491.82,0.00017774,2]
[382490759,1756647044986,-480.0,0.00017774,2]
[382490762,1756647044996,-480.0,0.00017774,2]
[382490763,1756647045006,-174.328887,0.00017774,2]
[382490766,1756647045016,-480.0,0.00017774,2]
[382490768,1756647045025,-480.0,0.00017774,2]
[382490770,1756647045035,-566.36,0.00017774,2]
[382490772,1756647045045,-3774.76,0.00017774,2]
[382490774,1756647045055,-169.664587,0.00017774,2]
[382490776,1756647045064,-151.0,0.00017774,2]
[382490778,1756647045074,-179.07399377,0.00017774,2]
[382490780,1756647045084,-1414.78,0.00017774,2]
[382490782,1756647045096,-691.26,0.00017774,2]
[382490784,1756647045106,-1344.11,0.00017774,2]
[382490786,1756647045116,-988.41,0.00017774,2]
[382490788,1756647045125,-568.19,0.00017774,2]
[382490790,1756647045135,-1739.22,0.00017774,2]
[382490792,1756647045144,-151.0,0.00017774,2]
[382490794,1756647045154,-151.0,0.00017774,2]
[382490796,1756647045163,-480.0,0.00017774,2]
[382490798,1756647045173,-480.0,0.00017774,2]
[382490800,1756647045183,-151.0,0.00017774,2]
[382490802,1756647045193,-1231.58,0.00017774,2]
[382490804,1756647045203,-1431.09,0.00017774,2]
[382490806,1756647045212,-763.56,0.00017774,2]
[382490808,1756647045223,-1121.78,0.00017774,2]
[382490810,1756647045232,-480.0,0.00017774,2]
[382490812,1756647045242,-480.0,0.00017774,2]
[382490814,1756647045252,-480.0,0.00017774,2]
[382490816,1756647045261,-1501.97,0.00017774,2]
[382490818,1756647045271,-701.5,0.00017774,2]
[382490820,1756647045281,-1504.03,0.00017774,2]
[382490823,1756647045295,-480.0,0.00017774,2]
[382490825,1756647045305,-768.17,0.00017774,2]
[382490827,1756647045315,-1256.06,0.00017774,2]
[382490829,1756647045325,-1006.65,0.00017774,2]
[382490831,1756647045336,-1655.5,0.00017774,2]
[382490833,1756647045348,-974.84,0.00017774,2]
[382490835,1756647045359,-151.0,0.00017774,2]
[382490836,1756647045368,-480.0,0.00017774,2]
[382490837,1756647045378,-151.0,0.00017774,2]
[382490838,1756647045389,-480.0,0.00017774,2]
[382490839,1756647045401,-1142.48,0.00017774,2]
[382490840,1756647045411,-1254.67,0.00017774,2]
[382490841,1756647045421,-151.0,0.00017774,2]
[382490842,1756647045431,-1177.69,0.00017774,2]
[382490843,1756647045442,-812.48,0.00017774,2]
[382490844,1756647045452,-2087.93,0.00017774,2]
[382490845,1756647045462,-1574.34,0.00017774,2]
[382490846,1756647045472,-480.0,0.00017774,2]
[382490849,1756647045482,-151.0,0.00017774,2]
[382490850,1756647045496,-1714.83,0.00017774,2]
[382490853,1756647045506,-922.16,0.00017774,2]
[382490855,1756647045517,-871.66,0.00017774,2]
[382490856,1756647045527,-543.84,0.00017774,2]
[382490859,1756647045538,-1262.08,0.00017774,2]
[382490861,1756647045548,-1671.95,0.00017774,2]
[382490863,1756647045558,-1725.24,0.00017774,2]
[382490865,1756647045569,-1388.54,0.00017774,2]
[382490867,1756647045579,-480.0,0.00017774,2]
[382490869,1756647045591,-480.0,0.00017774,2]
[382490871,1756647045601,-2190.56,0.00017774,2]
[382490873,1756647045610,-480.0,0.00017774,2]
[382490875,1756647045620,-6708.4,0.00017774,2]
[382490877,1756647045631,-872.56,0.00017774,2]
[382490879,1756647045640,-480.0,0.00017774,2]
[382490881,1756647045649,-515.52,0.00017774,2]
[382490883,1756647045659,-1301.33,0.00017774,2]
[382490885,1756647045668,-480.0,0.00017774,2]
[382490887,1756647045677,-480.0,0.00017774,2]
[382490889,1756647045687,-573.09,0.00017774,2]
[382490891,1756647045696,-697.46,0.00017774,2]
[382490893,1756647045706,-480.0,0.00017774,2]
[382490895,1756647045715,-1740.3,0.00017774,2]
[382490897,1756647045725,-480.0,0.00017774,2]
[382490899,1756647045735,-480.0,0.00017774,2]
[382490901,1756647045745,-3804.23,0.00017774,2]
[382490903,1756647045755,-2137.77,0.00017774,2]
[382490905,1756647045765,-1672.17,0.00017774,2]
[382490907,1756647045774,-480.0,0.00017774,2]
[382490909,1756647045784,-1536.51,0.00017774,2]
[382490912,1756647045794,-6503.61,0.00017774,2]
[382490914,1756647045805,-3134.13,0.00017774,2]
[382490916,1756647045815,-480.0,0.00017774,2]
[382490918,1756647045824,-151.0,0.00017774,2]
[382490920,1756647045833,-673.88,0.00017774,2]
[382490922,1756647045843,-480.0,0.00017774,2]
[382490924,1756647045853,-480.0,0.00017774,2]
[382490926,1756647045862,-480.0,0.00017774,2]
[382490928,1756647045872,-625.05,0.00017774,2]
[382490930,1756647045881,-480.0,0.00017774,2]
[382490932,1756647045890,-4231.94,0.00017774,2]
[382490935,1756647045899,-480.0,0.00017774,2]
[382490938,1756647045909,-576.88,0.00017774,2]
[382490940,1756647045919,-1268.44,0.00017774,2]
[382490942,1756647045929,-480.0,0.00017774,2]
[382490944,1756647045939,-1944.73,0.00017774,2]
[382490946,1756647045950,-1640.63,0.00017774,2]
[382490948,1756647045960,-1962.54,0.00017774,2]
[382490950,1756647045970,-480.0,0.00017774,2]
[382490952,1756647045979,-1769.05,0.00017774,2]
[382490954,1756647045989,-763.56,0.00017774,2]
[382490956,1756647045999,-485.31157402,0.00017774,2]
[382490958,1756647046009,-2342.59,0.00017774,2]
[382490961,1756647046019,-480.0,0.00017774,2]
[382490963,1756647046028,-710.16,0.00017774,2]
[382490965,1756647046038,-1568.51,0.00017774,2]
[382490966,1756647046047,-307.0552187,0.00017774,2]
[382490968,1756647046057,-5147.9,0.00017774,2]
[382490971,1756647046066,-2340.52,0.00017774,2]
[382490973,1756647046076,-720.8,0.00017774,2]
[382490975,1756647046085,-1428.81,0.00017774,2]
[382490977,1756647046096,-480.0,0.00017774,2]
[382490979,1756647046105,-480.0,0.00017774,2]
[382490981,1756647046115,-480.0,0.00017774,2]
[382490983,1756647046124,-1777.93,0.00017774,2]
[382490985,1756647046134,-497.22,0.00017774,2]
[382491007,1756647046144,-492.56,0.00017774,2]
[382491009,1756647046340,-677.0,0.00017774,2]
[382491011,1756647046350,-1324.07,0.00017774,2]
[382491013,1756647046360,-810.21,0.00017774,2]
[382491015,1756647046371,-480.0,0.00017774,2]
[382491017,1756647046381,-1352.93,0.00017774,2]
[382491019,1756647046390,-151.0,0.00017774,2]
[382491021,1756647046400,-484.91050785,0.00017774,2]
[382491023,1756647046409,-590.8,0.00017774,2]
[382491025,1756647046418,-1979.18,0.00017774,2]
[382491027,1756647046427,-754.89,0.00017774,2]
[382491029,1756647046437,-480.0,0.00017774,2]
[382491031,1756647046446,-151.0,0.00017774,2]
[382491033,1756647046456,-480.0,0.00017774,2]
[382491035,1756647046466,-151.0,0.00017774,2]
[382491037,1756647046475,-613.78,0.00017774,2]
[382491039,1756647046485,-279.423575,0.00017774,2]
[382491041,1756647046499,-1178.26,0.00017774,2]
[382491043,1756647046510,-8621.65,0.00017774,2]
[382491045,1756647046520,-1122.41,0.00017774,2]
[382491048,1756647046531,-1079.68,0.00017774,2]
[382491050,1756647046540,-480.0,0.00017774,2]
[382491052,1756647046550,-8229.75,0.00017774,2]
[382491053,1756647046560,-514.99,0.00017774,2]
[382491055,1756647046571,-151.0,0.00017774,2]
[382491057,1756647046580,-490.2,0.00017774,2]
[382491059,1756647046591,-151.0,0.00017774,2]
[382491062,1756647046600,-487.15,0.00017774,2]
[382491064,1756647046610,-151.0,0.00017774,2]
[382491066,1756647046619,-151.0,0.00017774,2]
[382491068,1756647046629,-480.0,0.00017774,2]
[382491070,1756647046638,-480.0,0.00017774,2]
[382491072,1756647046648,-480.0,0.00017774,2]
[382491074,1756647046658,-151.0,0.00017774,2]
[382491076,1756647046667,-1143.51,0.00017774,2]
[382491078,1756647046676,-2426.95,0.00017774,2]
[382491080,1756647046686,-480.0,0.00017774,2]
[382491082,1756647046696,-532.6,0.00017774,2]
[382491084,1756647046706,-4121.24,0.00017774,2]
[382491086,1756647046717,-2554.75,0.00017774,2]
[382491088,1756647046727,-480.0,0.00017774,2]
[382491090,1756647046737,-768.31,0.00017774,2]
[382491092,1756647046747,-1669.25,0.00017774,2]
[382491094,1756647046758,-260.86270022,0.00017774,2]
[382491096,1756647046768,-151.0,0.00017774,2]
[382491098,1756647046778,-484.98,0.00017774,2]
[382491100,1756647046788,-2559.06,0.00017774,2]
[382491102,1756647046798,-674.79,0.00017774,2]
[382491104,1756647046808,-480.0,0.00017774,2]
[382491106,1756647046818,-1726.42,0.00017774,2]
[382491108,1756647046828,-925.24,0.00017774,2]
[382491110,1756647046837,-1003.15,0.00017774,2]
[382491112,1756647046847,-151.0,0.00017774,2]
[382491114,1756647046856,-151.0,0.00017774,2]
[382491116,1756647046865,-185.876676,0.00017774,2]
[382491118,1756647046875,-151.0,0.00017774,2]
[382491120,1756647046885,-185.876676,0.00017774,2]
[382491123,1756647046898,-185.876676,0.00017774,2]
[382491125,1756647046909,-480.0,0.00017774,2]
[382491127,1756647046919,-2911.1,0.00017774,2]
[382491129,1756647046928,-151.0,0.00017774,2]
[382491131,1756647046938,-185.876676,0.00017774,2]
[382491133,1756647046947,-1653.85,0.00017774,2]
[382491135,1756647046957,-480.0,0.00017774,2]
[382491137,1756647046967,-1224.72,0.00017774,2]
[382491139,1756647046976,-480.0,0.00017774,2]
[382491141,1756647046985,-481.86,0.00017774,2]
[382491143,1756647046995,-151.0,0.00017774,2]
[382491145,1756647047004,-151.0,0.00017774,2]
[382491147,1756647047015,-775.67,0.00017774,2]
[382491149,1756647047024,-658.22,0.00017774,2]
[382491151,1756647047034,-480.0,0.00017774,2]
[382491153,1756647047045,-1098.87,0.00017774,2]
[382491155,1756647047055,-500.0,0.00017775,2]
[382491157,1756647047064,-500.0,0.00017775,2]
[382491159,1756647047074,-500.0,0.00017775,2]
[382491161,1756647047083,-1542.0,0.00017775,2]
[382491163,1756647047094,-151.0,0.00017775,2]
[382491165,1756647047104,-500.0,0.00017775,2]
[382491167,1756647047113,-198.0,0.00017775,2]
[382491169,1756647047123,-571.37089005,0.00017775,2]
[382491171,1756647047133,-500.0,0.00017775,2]
[382491173,1756647047142,-500.0,0.00017775,2]
[382491175,1756647047151,-151.0,0.00017775,2]
[382491177,1756647047161,-151.0,0.00017775,2]
[382491180,1756647047171,-239.35076144,0.00017775,2]
[382491182,1756647047180,-151.0,0.00017775,2]
[382491184,1756647047190,-500.0,0.00017775,2]
[382491185,1756647047200,-744.44,0.00017775,2]
[382491188,1756647047210,-596.28,0.00017775,2]
[382491190,1756647047220,-480.0,0.00017775,2]
[382491192,1756647047230,-480.0,0.00017775,2]
[382491194,1756647047240,-480.0,0.00017775,2]
[382491196,1756647047250,-480.0,0.00017775,2]
[382491198,1756647047259,-619.85714217,0.00017775,2]
[382491200,1756647047269,-480.0,0.00017775,2]
[382491202,1756647047280,-480.0,0.00017775,2]
[382491204,1756647047290,-480.0,0.00017775,2]
[382491206,1756647047300,-480.0,0.00017775,2]
[382491208,1756647047310,-480.0,0.00017775,2]
[382491210,1756647047320,-480.0,0.00017775,2]
[382491212,1756647047330,-480.0,0.00017775,2]
[382491214,1756647047340,-480.0,0.00017775,2]
[382491216,1756647047350,-1771.78,0.00017775,2]
[382491218,1756647047361,-480.0,0.00017775,2]
[382491220,1756647047372,-480.0,0.00017775,2]
[382491222,1756647047381,-480.0,0.00017775,2]
[382491224,1756647047391,-480.0,0.00017775,2]
[382491226,1756647047400,-1668.68,0.00017775,2]
[382491228,1756647047410,-480.0,0.00017775,2]
[382491230,1756647047420,-480.0,0.00017775,2]
[382491232,1756647047430,-480.0,0.00017775,2]
[382491234,1756647047439,-480.0,0.00017775,2]
[382491236,1756647047449,-279.29495814,0.00017775,2]
[382491238,1756647047458,-480.0,0.00017775,2]
[382491240,1756647047468,-812.35,0.00017775,2]
[382491242,1756647047478,-480.0,0.00017775,2]
[382491244,1756647047488,-480.0,0.00017775,2]
[382491247,1756647047502,-480.0,0.00017775,2]
[382491249,1756647047512,-1105.26,0.00017775,2]
[382491251,1756647047521,-480.0,0.00017775,2]
[382491253,1756647047530,-480.0,0.00017775,2]
[382491255,1756647047542,-186.55579662,0.00017775,2]
[382491256,1756647047551,-880.48,0.00017775,2]
[382491258,1756647047560,-480.0,0.00017775,2]
[382491260,1756647047572,-1033.69,0.00017775,2]
[382491262,1756647047582,-480.0,0.00017775,2]
[382491265,1756647047592,-480.0,0.00017775,2]
[382491267,1756647047601,-480.0,0.00017775,2]
[382491269,1756647047610,-480.0,0.00017775,2]